bitfinex/quotes_SOLUSD_20240708
["timestamp","ask_amount","ask_price","bid_price","bid_amount"]
[1720448686595,1.78099695,140.4,140.32,100.0]
[1720448686798,1.78106406,140.39,140.33,1.41340862]
[1720448687629,6.427,140.38,140.33,1.41340862]
[1720448687834,21.78118397,140.37,140.33,1.41340862]
[1720448688117,20.0,140.37,140.34,100.0]
[1720448688326,20.0,140.37,140.33,1.41493643]
[1720448688497,44.9163,140.41,140.33,1.41493643]
[1720448688498,21.78101298,140.4,140.33,1.41493643]
[1720448688694,20.0,140.4,140.3,115.6515]
[1720448688894,38.49,140.37,140.3,100.0]
[1720448689119,21.78143864,140.36,140.3,100.0]
[1720448689824,21.78143864,140.36,140.28,100.0]
[1720448690122,38.49,140.32,140.27,100.0]
[1720448690293,38.49,140.32,140.26,15.75]
[1720448690294,20.0,140.31,140.29,100.0]
[1720448690612,20.0,140.31,140.27,100.0]
[1720448691421,20.0,140.31,140.29,100.0]
[1720448691618,20.0,140.31,140.27,100.0]
[1720448692604,20.0,140.31,140.25,100.0]
[1720448692798,21.78185491,140.31,140.25,100.0]
[1720448693028,21.78185491,140.31,140.23,200.0]
[1720448693217,21.78185491,140.31,140.25,100.0]
[1720448693523,40.27185491,140.31,140.25,100.0]
[1720448693703,20.0,140.3,140.23,100.0]
[1720448693909,1.78211654,140.29,140.23,100.0]
[1720448695211,1.78211654,140.29,140.21,100.0]
[1720448695805,1.78211654,140.29,140.23,100.0]
[1720448696211,38.49,140.26,140.21,100.0]
[1720448696508,38.49,140.26,140.19,100.0]
[1720448696509,20.0,140.25,140.19,100.0]
[1720448697126,6.6371,140.24,140.17,100.0]
[1720448697319,20.0,140.23,140.19,100.0]
[1720448698496,20.0,140.23,140.17,200.0]
[1720448698714,21.78290271,140.23,140.17,100.0]
[1720448699825,20.0,140.23,140.19,100.0]
[1720448700321,20.0,140.23,140.19,200.0]
[1720448700519,20.0,140.23,140.19,100.0]
[1720448700717,21.7828384,140.23,140.17,100.0]
[1720448701806,21.7828384,140.23,140.15,200.0]
[1720448702005,21.7828384,140.23,140.15,100.0]
[1720448702425,21.7828384,140.23,140.18,100.0]
[1720448702901,6.6371,140.24,140.2,100.0]
[1720448703102,38.49,140.26,140.22,100.0]
[1720448703315,7.51219626,140.27,140.23,0.66383362]
[1720448703629,7.51219626,140.27,140.2,101.20211301]
[1720448703928,7.51219626,140.27,139.93,671.36620113]
[1720448703929,1.78246062,140.26,140.16,200.0]
[1720448704630,0.17,140.25,140.16,100.0]
[1720448704810,38.49,140.22,140.14,200.0]
[1720448705126,21.78331811,140.21,140.14,200.0]
[1720448705326,21.78331779,140.21,140.14,200.0]
[1720448705929,21.78331779,140.21,140.16,100.0]
[1720448706158,20.0,140.21,140.16,200.0]
[1720448706350,38.49,140.25,140.18,100.0]
[1720448706507,21.78286413,140.24,140.18,200.0]
[1720448706835,21.78286413,140.24,140.19,1.4200033]
[1720448707039,21.78286413,140.24,140.19,100.0]
[1720448707217,21.78286413,140.24,140.16,200.0]
[1720448707531,21.78286413,140.24,140.16,100.0]
[1720448707744,21.78286413,140.24,140.19,100.0]
[1720448708027,1.78286915,140.24,140.19,100.0]
[1720448708417,1.78286915,140.24,140.17,100.0]
[1720448708733,1.78285384,140.23,140.17,200.0]
[1720448708943,1.78293386,140.24,140.17,200.0]
[1720448709228,20.0,140.24,140.2,100.0]
[1720448709413,38.49,140.25,140.21,0.46561472]
[1720448709614,38.49,140.25,140.22,100.0]
[1720448709816,1.78293386,140.27,140.23,0.46753741]
[1720448710024,1.7824746,140.26,140.22,100.0]
[1720448710219,1.78259406,140.25,140.18,100.0]
[1720448710533,1.78289347,140.27,140.2,100.0]
[1720448710735,1.78265197,140.26,140.21,1.42611132]
[1720448711033,1.7825763,140.27,140.22,100.0]
[1720448711407,20.0,140.27,140.23,100.0]
[1720448712214,12.03253142,140.28,140.24,100.0]
[1720448712421,38.49,140.29,140.24,100.0]
[1720448712645,24.29364954,140.32,140.25,100.0]
[1720448712933,8.39694954,140.32,140.27,200.0]
[1720448713133,8.39694954,140.32,140.28,0.89103599]
[1720448713505,8.39694954,140.32,140.27,100.0]
[1720448713708,14.24130983,140.32,140.27,100.0]
[1720448713932,14.24130983,140.32,140.24,100.0]
[1720448714228,20.0,140.31,140.25,100.0]
[1720448714739,20.0,140.31,140.27,100.0]
[1720448715032,20.0,140.31,140.25,100.0]
[1720448715234,1.78197872,140.3,140.25,100.0]
[1720448716126,21.78206585,140.31,140.25,200.0]
[1720448716546,21.78206585,140.31,140.23,100.0]
[1720448716911,38.49,140.29,140.21,100.0]
[1720448717112,4.98,140.26,140.19,100.0]
[1720448717342,1.78275829,140.25,140.19,100.0]
[1720448717522,20.0,140.25,140.21,100.0]
[1720448717836,20.0,140.25,140.19,200.0]
[1720448718043,20.0,140.25,140.19,100.0]
[1720448718736,20.0,140.25,140.21,100.0]
[1720448718945,20.0,140.25,140.21,200.0]
[1720448719125,8.27055126,140.24,140.18,100.0]
[1720448719325,20.0,140.23,140.18,100.0]
[1720448719629,20.0,140.23,140.2,100.0]
[1720448720011,20.0,140.23,140.22,100.0]
[1720448720434,20.0,140.23,140.22,101.42423188]
[1720448720733,4.98,140.26,140.24,100.0]
[1720448720929,4.98,140.26,140.22,100.0]
[1720448721135,4.98,140.26,140.2,100.0]
[1720448721638,6.76265145,140.26,140.21,1.37022863]
[1720448722035,20.0,140.25,140.19,1.37032636]
[1720448722370,6.1048,140.23,140.17,100.0]
[1720448722657,20.0,140.22,140.17,100.0]
[1720448722966,20.0,140.22,140.16,100.0]
[1720448723860,20.0,140.22,140.18,100.0]
[1720448725087,1.78289187,140.21,140.16,100.0]
[1720448725582,21.78315558,140.22,140.16,100.0]
[1720448725881,60.27315558,140.22,140.16,100.0]
[1720448726259,58.49,140.22,140.16,200.0]
[1720448726484,1.78306897,140.21,140.16,100.0]
[1720448726680,58.49,140.22,140.18,100.0]
[1720448727188,58.49,140.22,140.18,200.0]
[1720448727378,58.49,140.22,140.18,100.0]
[1720448727876,38.49,140.22,140.18,200.0]
[1720448728074,38.49,140.22,140.18,100.0]
[1720448728661,40.2731186,140.22,140.18,100.0]
[1720448729072,38.49,140.22,140.18,100.0]
[1720448729276,20.0,140.21,140.18,100.0]
[1720448729983,20.0,140.21,140.2,100.0]
[1720448730956,20.0,140.21,140.18,100.0]
[1720448731258,5.89504173,140.24,140.18,100.0]
[1720448731462,21.78309689,140.23,140.18,100.0]
[1720448731666,1.78309689,140.23,140.18,100.0]
[1720448731887,38.49,140.22,140.14,100.0]
[1720448732071,21.78336005,140.21,140.13,100.0]
[1720448732269,1.78345923,140.2,140.13,100.0]
[1720448733004,1.78345923,140.2,140.14,1.41533696]
[1720448733297,1.78345923,140.2,140.13,100.0]
[1720448734085,1.78345923,140.2,140.15,100.0]
[1720448734286,1.78345923,140.2,140.13,200.0]
[1720448735095,16.98933449,140.26,140.25,100.0]
[1720448735096,4.98,140.26,140.25,100.0]
[1720448735407,4.98,140.26,140.25,100.17]
[1720448735685,4.98,140.26,140.25,121.79]
[1720448735888,4.98,140.26,140.25,100.0]
[1720448737765,4.98,140.26,140.25,121.62]
[1720448737981,4.98,140.26,140.25,100.34]
[1720448738995,4.98,140.26,140.25,100.0]
[1720448740302,4.98,140.26,140.23,100.0]
[1720448740483,4.98,140.26,140.24,100.0]
[1720448740688,4.98,140.26,140.25,100.0]
[1720448740887,4.98,140.26,140.23,100.0]
[1720448741562,4.98,140.26,140.24,101.42582696]
[1720448741767,4.98,140.26,140.24,1.42582696]
[1720448742196,4.98,140.26,140.24,101.42582696]
[1720448742868,4.98,140.26,140.24,1.42582696]
[1720448743176,4.98,140.26,140.21,200.0]
[1720448744602,4.98,140.26,140.21,100.0]
[1720448745100,4.98,140.26,140.21,200.0]
[1720448745603,6.76243786,140.26,140.21,200.0]
[1720448745893,20.0,140.25,140.21,100.0]
[1720448747288,20.0,140.25,140.19,200.0]
[1720448747509,1.78264532,140.24,140.19,100.0]
[1720448747665,20.0,140.25,140.2,1.12957727]
[1720448747666,21.7828128,140.25,140.2,1.12957727]
[1720448747870,20.0,140.25,140.21,100.0]
[1720448748202,24.98,140.26,140.21,100.0]
[1720448748787,26.76259638,140.26,140.21,100.0]
[1720448748980,24.98,140.26,140.21,100.0]
[1720448749886,26.76253104,140.26,140.19,100.0]
[1720448750082,26.76253104,140.26,140.21,100.0]
[1720448750398,26.76253104,140.26,140.19,101.4219502]
[1720448750585,26.76253104,140.26,140.21,100.0]
[1720448750789,26.76253104,140.26,140.22,1.42164597]
[1720448750996,24.98,140.26,140.23,100.0]
[1720448751300,4.98,140.26,140.23,200.0]
[1720448752197,4.98,140.26,140.23,100.0]
[1720448753178,4.98,140.26,140.21,100.0]
[1720448753179,4.98,140.26,140.25,200.0]
[1720448753396,4.98,140.26,140.25,200.34]
[1720448753585,4.98,140.26,140.25,221.79]
[1720448753775,4.98,140.26,140.25,200.51]
[1720448753975,4.98,140.26,140.25,200.34]
[1720448754705,4.98,140.26,140.25,200.0]
[1720448755567,4.98,140.26,140.25,200.17]
[1720448755801,4.98,140.26,140.25,221.79]
[1720448757005,4.98,140.26,140.25,221.96]
[1720448757977,38.49,140.35,140.32,200.0]
[1720448759007,38.49,140.35,140.29,200.0]
[1720448759205,20.0,140.34,140.27,200.0]
[1720448759577,20.0,140.34,140.22,16.22]
[1720448759578,1.78162261,140.33,140.25,100.0]
[1720448759800,1.78162261,140.33,140.28,100.0]
[1720448760000,1.78162261,140.33,140.29,1.42403146]
[1720448760207,1.78162261,140.33,140.26,100.0]
[1720448760511,20.0,140.34,140.28,100.0]
[1720448761016,20.0,140.34,140.26,100.0]
[1720448761017,1.78154654,140.33,140.26,100.0]
[1720448761313,1.78154654,140.33,140.27,1.42220489]
[1720448761817,38.49,140.31,140.23,100.0]
[1720448762112,1.78208278,140.3,140.23,100.0]
[1720448762284,21.78208278,140.3,140.23,100.0]
[1720448762482,8.00266969,140.29,140.22,100.0]
[1720448762707,38.49,140.27,140.22,100.0]
[1720448763011,38.49,140.23,140.17,100.0]
[1720448763192,38.49,140.23,140.16,100.0]
[1720448763193,20.0,140.22,140.16,100.0]
[1720448763394,6.2205,140.21,140.16,100.0]
[1720448763589,20.0,140.2,140.17,1.41599422]
[1720448764104,20.0,140.2,140.15,1.41599422]
[1720448764105,21.78322515,140.2,140.15,1.41599422]
[1720448764306,38.49,140.19,140.13,1.41599422]
[1720448764490,21.78370207,140.18,140.11,0.2]
[1720448764691,1.78382178,140.17,140.11,0.2]
[1720448764896,38.49,140.15,140.11,0.2]
[1720448765296,21.78395108,140.14,140.11,0.2]
[1720448765884,20.0,140.14,140.11,0.2]
[1720448766292,20.0,140.14,140.11,1.62237637]
[1720448767610,20.0,140.14,140.11,0.2]
[1720448767918,21.78405633,140.14,140.08,100.0]
[1720448768102,21.78405633,140.14,140.06,100.0]
[1720448768412,21.78405633,140.14,140.07,100.0]
[1720448768613,38.49,140.11,140.04,200.0]
[1720448768798,21.78455159,140.1,140.04,100.0]
[1720448768998,21.78455159,140.1,140.02,100.0]
[1720448769206,21.78455159,140.1,140.01,0.2]
[1720448769392,38.49,140.07,140.01,0.2]
[1720448769698,21.78511302,140.06,140.01,0.2]
[1720448770323,28.19081302,140.06,140.01,0.2]
[1720448770614,28.19081302,140.06,139.98,100.0]
[1720448771129,20.0,140.06,140.01,100.0]
[1720448771407,6.0789,140.09,140.04,100.0]
[1720448771594,6.0789,140.09,140.05,0.37841333]
[1720448771787,1.7845206,140.1,140.04,200.0]
[1720448772004,1.7845206,140.1,140.02,200.0]
[1720448772312,1.7845206,140.1,140.04,200.0]
[1720448772604,38.49,140.11,140.06,200.0]
[1720448773009,38.49,140.11,140.07,0.3680296]
[1720448773216,38.49,140.11,140.04,100.0]
[1720448773398,38.49,140.11,140.05,100.0]
[1720448773600,38.49,140.11,140.08,100.0]
[1720448773914,38.49,140.15,140.09,100.0]
[1720448774288,38.49,140.15,140.1,1.4226962]
[1720448774489,1.78410315,140.14,140.09,1.4226962]
[1720448775187,38.49,140.15,140.09,201.4226962]
[1720448775787,6.4707,140.17,140.11,200.0]
[1720448775788,8.25458096,140.17,140.11,200.0]
[1720448775988,14.00589473,140.17,140.09,200.0]
[1720448776289,6.4707,140.17,140.11,100.0]
[1720448776488,1.78372012,140.19,140.13,100.0]
[1720448776704,46.31702111,140.21,140.15,100.0]
[1720448777038,46.31702111,140.21,140.14,100.45071877]
[1720448777039,44.5335,140.21,140.17,100.0]
[1720448777335,16.6268,140.25,140.18,0.45059015]
[1720448777336,22.8494,140.25,140.18,0.45059015]
[1720448777517,22.8494,140.25,140.18,100.0]
[1720448777518,1.78293189,140.24,140.18,100.0]
[1720448777912,28.67958564,140.25,140.2,200.0]
[1720448777913,5.83018564,140.25,140.2,200.0]
[1720448778140,1.78293234,140.27,140.2,100.0]
[1720448778306,1.78272604,140.26,140.2,100.0]
[1720448778506,1.78272604,140.26,140.21,0.42512639]
[1720448778730,1.78272604,140.26,140.2,100.0]
[1720448779011,1.78272604,140.26,140.21,0.73157919]
[1720448779327,1.78272604,140.26,140.16,200.0]
[1720448779513,38.49,140.24,140.16,200.0]
[1720448779841,38.49,140.24,140.18,200.0]
[1720448780137,1.78281739,140.23,140.18,200.0]
[1720448780431,1.78281739,140.23,140.18,100.0]
[1720448780638,21.78281739,140.23,140.18,100.0]
[1720448781432,20.0,140.23,140.18,200.0]
[1720448781629,20.0,140.23,140.19,1.42605427]
[1720448781838,20.0,140.23,140.2,200.0]
[1720448782028,20.0,140.23,140.21,1.4258551]
[1720448782606,20.0,140.23,140.21,1.42575397]
[1720448782938,20.0,140.23,140.18,100.0]
[1720448783309,20.0,140.23,140.2,100.0]
[1720448783512,21.78282538,140.23,140.18,100.0]
[1720448784756,20.0,140.23,140.19,100.0]
[1720448785057,20.0,140.23,140.2,100.0]
[1720448785222,20.0,140.23,140.19,100.0]
[1720448785615,21.78283444,140.23,140.18,100.0]
[1720448786234,20.0,140.23,140.18,100.0]
[1720448786437,21.78295938,140.23,140.18,100.0]
[1720448788037,20.0,140.23,140.19,100.0]
[1720448789027,20.0,140.23,140.18,100.0]
[1720448789728,21.78292793,140.23,140.18,100.0]
[1720448790121,28.13712793,140.23,140.18,100.0]
[1720448790520,26.3542,140.23,140.18,200.0]
[1720448790744,38.49,140.21,140.14,100.0]
[1720448790926,28.91635997,140.2,140.09,215.3068]
[1720448791241,21.78325997,140.2,140.12,100.0]
[1720448791540,21.78325997,140.2,140.13,100.0]
[1720448791935,21.78325997,140.2,140.12,100.0]
[1720448792639,21.78355216,140.2,140.15,100.0]
[1720448792814,20.0,140.2,140.15,100.0]
[1720448793020,38.49,140.21,140.16,100.0]
[1720448793438,38.49,140.21,140.13,200.17]
[1720448794021,38.49,140.21,140.13,100.0]
[1720448794022,1.78326845,140.2,140.13,100.0]
[1720448794222,1.78326845,140.2,140.11,100.0]
[1720448794223,21.78326845,140.2,140.11,100.0]
[1720448794423,21.78326845,140.2,140.1,100.0]
[1720448794424,21.78326845,140.2,140.13,100.0]
[1720448795165,38.49,140.17,140.09,100.0]
[1720448795412,8.34109943,140.16,140.09,200.0]
[1720448795644,20.0,140.15,140.09,100.0]
[1720448795846,1.78424106,140.14,140.07,100.0]
[1720448796922,20.0,140.15,140.1,100.0]
[1720448797255,20.0,140.15,140.12,100.0]
[1720448797424,20.0,140.15,140.1,100.0]
[1720448797624,21.78390884,140.15,140.08,200.0]
[1720448797845,1.78403446,140.14,140.08,200.0]
[1720448799550,38.49,140.13,140.08,200.0]
[1720448799753,21.78439307,140.12,140.08,200.0]
[1720448799941,20.0,140.12,140.08,200.0]
[1720448800144,21.78438987,140.12,140.08,200.0]
[1720448801058,21.78438987,140.12,140.04,100.0]
[1720448801565,38.49,140.09,140.03,100.0]
[1720448801871,6.118,140.07,140.0,100.0]
[1720448802062,21.78512964,140.06,140.0,100.0]
[1720448802560,21.78512964,140.06,139.99,100.0]
[1720448802754,20.0,140.06,140.01,200.0]
[1720448802953,20.0,140.06,140.03,100.0]
[1720448803157,20.0,140.06,140.01,200.0]
[1720448803362,20.0,140.06,140.02,1.19990092]
[1720448803540,1.78515636,140.05,140.01,200.0]
[1720448803749,21.78515804,140.06,139.99,100.0]
[1720448803963,21.78515804,140.06,140.01,100.0]
[1720448804161,21.78515804,140.06,140.02,1.42629258]
[1720448805575,20.0,140.06,140.02,1.42629258]
[1720448806573,1.78510734,140.05,139.99,200.0]
[1720448806871,1.78510734,140.05,140.0,1.19889383]
[1720448807243,1.78510734,140.05,139.98,1.19889966]
[1720448807480,1.78510734,140.05,140.0,100.0]
[1720448807780,1.78510734,140.05,140.0,1.19866223]
[1720448808352,40.27510734,140.05,139.98,100.0]
[1720448808553,20.0,140.04,139.98,100.0]
[1720448808756,21.78558858,140.04,139.98,100.0]
[1720448808973,21.78558858,140.04,139.99,0.40555374]
[1720448809361,21.78558858,140.04,139.98,100.40555374]
[1720448810168,21.78558858,140.04,139.99,0.40590047]
[1720448810360,21.78558858,140.04,139.99,0.40590046]
[1720448811270,20.0,140.04,139.99,101.42852227]
[1720448811464,21.78537286,140.04,139.99,0.37280373]
[1720448811774,21.78537286,140.04,139.98,100.0]
[1720448812148,21.78537154,140.04,139.98,100.0]
[1720448812354,21.78542421,140.04,139.98,100.0]
[1720448813954,6.2632,140.18,140.09,100.0]
[1720448814254,0.97541183,140.17,140.09,100.0]
[1720448814454,0.97541183,140.17,140.08,1.42430556]
[1720448814455,38.49,140.16,140.08,1.42430556]
[1720448814767,0.97541183,140.15,140.07,100.0]
[1720448814969,39.46541183,140.17,140.07,100.0]
[1720448815161,39.46541183,140.17,140.09,100.0]
[1720448815482,0.97541183,140.17,140.09,100.0]
[1720448815655,0.97541183,140.17,140.07,100.0]
[1720448816185,7.1348,140.16,140.04,0.17]
[1720448816359,44.9532,140.08,140.0,100.0]
[1720448816558,0.97541183,140.07,139.97,100.0]
[1720448817085,18.13427709,140.13,139.99,16.5543]
[1720448817086,39.46541183,140.12,139.99,16.5543]
[1720448817264,0.97541183,140.12,140.02,100.0]
[1720448817582,38.49,140.1,140.0,100.53151233]
[1720448817784,20.97541183,140.09,140.0,100.0]
[1720448817990,20.97541183,140.09,140.04,100.0]
[1720448817991,20.0,140.09,140.04,100.0]
[1720448818287,5.80396316,140.16,140.1,100.0]
[1720448818455,0.97541183,140.17,140.1,100.0]
[1720448818656,6.76845123,140.17,140.1,100.0]
[1720448818862,38.49,140.16,140.08,100.0]
[1720448819159,0.97541183,140.15,140.08,100.0]
[1720448819563,0.97541183,140.15,140.1,100.0]
[1720448819749,20.0,140.15,140.1,100.0]
[1720448819950,20.97541183,140.15,140.08,100.0]
[1720448820190,6.4545,140.19,140.09,100.0]
[1720448820191,25.62360662,140.18,140.09,100.0]
[1720448820377,20.97541183,140.18,140.07,100.0]
[1720448820568,0.97541183,140.17,140.07,100.0]
[1720448820881,0.97541183,140.17,140.09,100.0]
[1720448821082,0.97541183,140.17,140.06,100.17]
[1720448821269,38.49,140.15,140.05,100.0]
[1720448821469,20.97541183,140.14,140.05,100.0]
[1720448821663,20.97541183,140.14,140.06,1.36233152]
[1720448821987,0.17,140.13,140.05,1.36233152]
[1720448822166,38.49,140.11,140.01,100.0]
[1720448822368,21.14541183,140.1,140.01,100.0]
[1720448822752,38.49,140.07,139.96,200.0]
[1720448823093,38.49,140.07,139.99,100.0]
[1720448823094,20.97541183,140.06,139.99,100.0]
[1720448823264,20.97541183,140.06,140.0,1.42821197]
[1720448823589,20.0,140.06,140.01,100.0]
[1720448823770,20.97541183,140.1,140.02,1.42797704]
[1720448824451,0.17,140.09,140.0,1.42818603]
[1720448824652,0.97541183,140.08,140.0,1.42818603]
[1720448824854,0.97541183,140.07,140.02,100.0]
[1720448825061,20.0,140.1,140.04,100.0]
[1720448825255,20.0,140.1,140.06,100.0]
[1720448825491,20.0,140.1,140.05,1.42747227]
[1720448825668,0.97541183,140.09,140.05,1.42747227]
[1720448825873,0.97541183,140.09,140.02,101.42774525]
[1720448826066,0.97541183,140.09,140.01,100.0]
[1720448826285,0.97541183,140.09,140.04,100.0]
[1720448826583,0.97541183,140.09,140.01,100.0]
[1720448826790,0.97541183,140.09,139.99,200.0]
[1720448827295,0.97541183,140.08,140.01,200.0]
[1720448827460,0.97541183,140.08,139.99,100.0]
[1720448827669,0.97541183,140.08,140.0,1.42819503]
[1720448827865,15.7982,140.05,139.94,100.0]
[1720448828073,15.7982,140.05,139.92,100.0]
[1720448828074,38.49,140.03,139.92,100.0]
[1720448828310,20.97541183,140.02,139.94,100.0]
[1720448828569,20.0,140.02,139.97,100.0]
[1720448828788,20.0,140.02,139.98,1.4276806]
[1720448828789,0.97541183,140.02,139.98,1.4276806]
[1720448828984,20.97541183,140.04,139.97,100.0]
[1720448829292,7.15871183,140.06,140.0,100.0]
[1720448829468,5.61478545,140.09,140.05,100.0]
[1720448829671,0.97541183,140.11,140.05,100.0]
[1720448829861,7.15871183,140.12,140.05,100.0]
[1720448830061,0.97541183,140.13,140.07,100.0]
[1720448830266,0.97541183,140.13,140.04,1.42683447]
[1720448830460,0.97541183,140.13,140.05,1.42673258]
[1720448830665,38.49,140.12,140.05,1.42673258]
[1720448830878,0.97541183,140.11,140.05,1.42673258]
[1720448831059,38.49,140.12,140.03,100.0]
[1720448831060,8.11361183,140.1,140.03,100.0]
[1720448831257,8.11361183,140.1,140.03,1.42816002]
[1720448831258,0.97541183,140.1,140.03,1.42816002]
[1720448831695,0.97541183,140.1,140.01,100.0]
[1720448831696,38.49,140.04,139.94,100.0]
[1720448831869,38.49,140.04,139.92,100.0]
[1720448831870,7.143,140.0,139.92,100.0]
[1720448832076,1.78608487,139.99,139.93,1.42098969]
[1720448832300,38.49,140.0,139.93,1.42098969]
[1720448832463,27.92161675,139.99,139.92,100.0]
[1720448832779,1.78627116,139.98,139.92,100.0]
[1720448833259,45.635,139.96,139.91,0.2]
[1720448833488,15.7343,139.94,139.86,100.0]
[1720448833682,38.49,139.92,139.84,100.0]
[1720448833900,20.0,139.93,139.82,200.0]
[1720448834059,20.0,139.93,139.84,100.0]
[1720448834261,20.0,139.93,139.86,100.0]
[1720448834461,20.0,139.97,139.88,100.0]
[1720448834661,0.17,139.97,139.81,100.2]
[1720448834879,53.7837,139.89,139.83,100.0]
[1720448835098,20.0,139.88,139.81,0.2]
[1720448836190,47.35,139.94,139.84,100.0]
[1720448836704,6.0415,139.96,139.88,100.0]
[1720448836906,6.0415,139.96,139.86,100.0]
[1720448837480,6.0415,139.96,139.88,100.0]
[1720448837682,20.0,139.95,139.88,100.0]
[1720448837999,6.0415,140.01,139.91,100.0]
[1720448838199,53.3915,140.01,139.91,100.0]
[1720448838706,53.3915,140.01,139.93,100.0]
[1720448839297,53.3915,140.01,139.94,0.17]
[1720448839497,53.3915,140.01,139.9,100.0]
[1720448839701,53.3915,140.01,139.91,0.17]
[1720448839886,53.3915,140.01,139.9,100.0]
[1720448840307,47.35,139.97,139.88,100.0]
[1720448840515,20.0,139.96,139.85,100.0]
[1720448840809,0.17,139.95,139.85,100.0]
[1720448841005,20.0,139.96,139.88,100.0]
[1720448841220,67.35,139.96,139.87,100.0]
[1720448841392,67.35,139.96,139.85,100.0]
[1720448841593,0.17,139.95,139.85,100.0]
[1720448841908,0.17,139.95,139.83,100.0]
[1720448842289,0.34,139.95,139.83,100.0]
[1720448842493,0.34,139.95,139.85,100.0]
[1720448842494,47.35,139.92,139.85,100.0]
[1720448842792,20.0,139.91,139.83,100.0]
[1720448842987,20.0,139.91,139.81,0.2]
[1720448842988,13.7308,139.9,139.81,0.2]
[1720448843208,20.17,139.89,139.81,0.2]
[1720448843416,47.35,139.87,139.81,0.2]
[1720448843605,20.0,139.86,139.81,0.2]
[1720448844513,0.51,139.85,139.81,0.2]
[1720448844817,0.17,139.85,139.81,0.2]
[1720448845026,0.34,139.85,139.81,0.2]
[1720448845240,0.17,139.85,139.81,0.2]
[1720448845531,47.52,139.83,139.74,0.18469]
[1720448845933,47.35,139.78,139.74,0.18469]
[1720448846104,20.0,139.82,139.74,0.18469]
[1720448846105,47.35,139.8,139.74,0.18469]
[1720448846201,20.0,139.77,139.74,0.18469]
[1720448846796,27.1546,139.77,139.71,0.2]
[1720448847097,27.1546,139.77,139.61,0.2]
[1720448847098,47.35,139.72,139.63,100.0]
[1720448847296,0.34,139.76,139.64,100.0]
[1720448847297,20.0,139.71,139.64,100.0]
[1720448847497,20.0,139.77,139.69,100.0]
[1720448847725,20.0,139.77,139.7,100.0]
[1720448847945,20.0,139.79,139.7,100.0]
[1720448848125,20.0,139.79,139.72,100.0]
[1720448848299,20.0,139.79,139.7,100.0]
[1720448848497,47.35,139.75,139.62,100.0]
[1720448848696,20.0,139.74,139.62,100.0]
[1720448848918,20.0,139.74,139.64,100.0]
[1720448849122,20.0,139.74,139.62,100.0]
[1720448849420,20.0,139.74,139.61,100.2]
[1720448849642,47.35,139.71,139.61,0.2]
[1720448849813,47.35,139.71,139.64,100.0]
[1720448850122,20.0,139.7,139.61,0.2]
[1720448850431,20.0,139.7,139.61,100.2]
[1720448850920,0.17,139.69,139.61,0.2]